[Event "FIDE World Rapid-ch Open 2018"]
[White "Gordievsky, Dmitry"]
[Black "Gaifullin, Artur"]
[Site "St. Petersburg"]
[Round "2.97"]
[Annotator "ChessBase"]
[Result "1/2-1/2"]
[Date "2018.12.26"]
[WhiteElo "2614"]
[BlackElo "2448"]
[PlyCount "96"]
[TimeControl "900+10"]

1. d4 {[%emt 0:0:0]} Nf6 {[%emt 0:0:0]} 2. Nf3 {[%emt 0:0:0]} d5 {[%emt 0:0:0]
} 3. e3 {[%emt 0:0:0]} e6 {[%emt 0:0:0]} 4. Bd3 {[%emt 0:0:0]} b6 {[%emt 0:0:25]} 5. 0-0 {[%emt 0:0:12]} Bb7 {[%emt 0:0:1]} 6. b3 {[%emt 0:0:5]
} Bd6 {[%emt 0:0:50]} 7. c4 {[%emt 0:0:1]} 0-0 {[%emt 0:0:21]
} 8. cxd5 {[%emt 0:0:2]} exd5 {[%emt 0:0:11]} 9. Ba3 {[%emt 0:0:1]} Bxa3 {[%emt 0:2:2]
} 10. Nxa3 {[%emt 0:0:2]} Qe7 {[%emt 0:0:6]} 11. Nb5 {[%emt 0:0:28]
} a6 {[%emt 0:0:43]} 12. Nc3 {[%emt 0:0:2]} Nbd7 {[%emt 0:0:0]} 13. Rc1 {[%emt 0:0:28]} c5 {[%emt 0:0:37]} 14. Ne2 {[%emt 0:4:29]} Rac8 {[%emt 0:1:0]} 15. Ng3 {[%emt 0:0:7]} g6 {[%emt 0:0:4]} 16. Qe2 {[%emt 0:0:0]} b5 {[%emt 0:0:35]} 17. dxc5 {[%emt 0:0:4]} Nxc5 {[%emt 0:0:1]} 18. Nd4 {[%emt 0:1:16]} Nfe4 {[%emt 0:0:49]} 19. f3 {[%emt 0:2:27]} Nxg3 {[%emt 0:0:32]
} 20. hxg3 {[%emt 0:0:2]} Rfe8 {[%emt 0:0:11]} 21. Kf2 {[%emt 0:0:22]
} Qf6 {[%emt 0:0:4]} 22. Bb1 {[%emt 0:3:29]} b4 {[%emt 0:0:0]} 23. Rfd1 {[%emt 0:0:14]} h5 {[%emt 0:1:54]} 24. f4 {[%emt 0:1:8]} Re7 {[%emt 0:1:6]} 25. Kg1 {[%emt 0:1:7]} Ne4 {[%emt 0:2:19]} 26. Bxe4 {[%emt 0:0:53]
} Rxe4 {[%emt 0:0:8]} 27. Rxc8+ {[%emt 0:0:49]} Bxc8 {[%emt 0:0:0]} 28. Qd2 {[%emt 0:0:17]} Bg4 {[%emt 0:0:41]} 29. Rc1 {[%emt 0:0:52]} a5 {[%emt 0:0:59]} 30. Kf2 {[%emt 0:0:31]} h4 {[%emt 0:0:14]} 31. Nc6 {[%emt 0:0:25]
} hxg3+ {[%emt 0:0:34]} 32. Kxg3 {[%emt 0:0:1]} Bd7 {[%emt 0:0:0]} 33. Ne5 {[%emt 0:0:8]} Be6 {[%emt 0:0:9]} 34. Nf3 {[%emt 0:0:12]} d4 {[%emt 0:1:21]} 35. Nxd4 {[%emt 0:0:19]} g5 {[%emt 0:0:4]} 36. Nf3 {[%emt 0:0:13]
} gxf4+ {[%emt 0:0:31]} 37. exf4 {[%emt 0:0:1]} Qf5 {[%emt 0:0:0]} 38. Ne5 {[%emt 0:0:14]} Kg7 {[%emt 0:0:18]} 39. Re1 {[%emt 0:0:12]} Rxe1 {[%emt 0:0:5]} 40. Qxe1 {[%emt 0:0:1]} Qc2 {[%emt 0:0:4]} 41. Qf2 {[%emt 0:0:13]
} Qb1 {[%emt 0:0:20]} 42. Kh2 {[%emt 0:0:19]} Qh7+ {[%emt 0:0:0]} 43. Kg3 {[%emt 0:0:1]} Qb1 {[%emt 0:0:2]} 44. Nc6 {[%emt 0:0:11]} Qg6+ {[%emt 0:0:18]} 45. Kh2 {[%emt 0:0:3]} Qh7+ {[%emt 0:0:1]} 46. Kg1 {[%emt 0:0:4]
} Qb1+ {[%emt 0:0:1]} 47. Kh2 {[%emt 0:0:13]} Qh7+ {[%emt 0:0:0]} 48. Kg1 {[%emt 0:0:1]} Qb1+ {[%emt 0:0:1]} 1/2-1/2

[Event "FIDE World Rapid-ch Open 2018"]
[White "khayat, Abdullah F"]
[Black "Vastrukhin, Oleg"]
[Site "St. Petersburg"]
[Round "2.98"]
[Annotator "NA"]
[Result "0-1"]
[Date "2018.12.26"]
[WhiteElo "1723"]
[BlackElo "2413"]
[PlyCount "98"]
[TimeControl "900+10"]

1. Nf3 {[%emt 0:0:0]} g6 {[%emt 0:1:23]} 2. d4 {[%emt 0:0:0]} Bg7 {[%emt 0:0:2]
} 3. g3 {[%emt 0:0:0]} d6 {[%emt 0:0:1]} 4. Bg2 {[%emt 0:0:0]} e5 {[%emt 0:0:2]} 5. dxe5 {[%emt 0:0:6]} dxe5 {[%emt 0:0:2]} 6. Qxd8+ {[%emt 0:0:3]} Kxd8 {[%emt 0:0:2]} 7. 0-0 {[%emt 0:0:5]} c6 {[%emt 0:0:1]
} 8. e4 {[%emt 0:0:4]} f6 {[%emt 0:0:16]} 9. Be3 {[%emt 0:0:0]} Be6 {[%emt 0:0:3]} 10. b3 {[%emt 0:0:19]} Nd7 {[%emt 0:0:7]} 11. c4 {[%emt 0:0:4]
} Bh6 {[%emt 0:0:6]} 12. Bxh6 {[%emt 0:0:37]} Nxh6 {[%emt 0:0:0]} 13. Nc3 {[%emt 0:0:3]} Nf7 {[%emt 0:0:14]} 14. Rfd1 {[%emt 0:0:18]} Ke7 {[%emt 0:0:12]} 15. Rd2 {[%emt 0:0:17]} a5 {[%emt 0:0:27]} 16. Rad1 {[%emt 0:1:7]
} Nc5 {[%emt 0:0:22]} 17. h3 {[%emt 0:0:37]} Rhd8 {[%emt 0:0:0]} 18. Ne1 {[%emt 0:1:20]} Rxd2 {[%emt 0:0:14]} 19. Rxd2 {[%emt 0:0:3]} h5 {[%emt 0:1:20]} 20. f3 {[%emt 0:0:54]} h4 {[%emt 0:0:22]} 21. g4 {[%emt 0:0:56]
} g5 {[%emt 0:0:6]} 22. Kf2 {[%emt 0:0:49]} Nh8 {[%emt 0:0:0]} 23. Bf1 {[%emt 0:0:45]} Ng6 {[%emt 0:0:6]} 24. Ng2 {[%emt 0:0:11]} Bd7 {[%emt 0:1:13]} 25. Ke3 {[%emt 0:1:19]} Ne6 {[%emt 0:0:3]} 26. Na4 {[%emt 0:0:24]
} Nd4 {[%emt 0:0:58]} 27. Nc3 {[%emt 0:1:23]} Nf8 28. Ne1 {[%emt 0:0:30]
} Nfe6 {[%emt 0:1:4]} 29. Ne2 {[%emt 0:0:38]} c5 {[%emt 0:0:0]} 30. Nc3 {[%emt 0:0:30]} Bc6 {[%emt 0:0:3]} 31. Nd5+ {[%emt 0:1:55]} Bxd5 {[%emt 0:0:2]} 32. cxd5 {[%emt 0:0:10]} Nf4 {[%emt 0:0:3]} 33. Nd3 {[%emt 0:0:38]
} Nxd3 {[%emt 0:0:16]} 34. Bxd3 {[%emt 0:0:55]} b5 {[%emt 0:0:0]} 35. a4 {[%emt 0:1:35]} bxa4 {[%emt 0:1:28]} 36. bxa4 {[%emt 0:0:5]} Rb8 {[%emt 0:0:0]} 37. Rd1 {[%emt 0:1:47]} Rb4 {[%emt 0:0:27]} 38. Rb1 {[%emt 0:0:5]
} Kd6 {[%emt 0:0:3]} 39. Rxb4 {[%emt 0:0:20]} cxb4 {[%emt 0:0:0]} 40. Bc4 {[%emt 0:0:13]} Kc5 {[%emt 0:0:34]} 41. Bd3 {[%emt 0:0:9]} b3 {[%emt 0:0:26]} 42. Bb1 {[%emt 0:0:7]} Kb4 {[%emt 0:0:10]} 43. d6 {[%emt 0:0:4]
} Kxa4 {[%emt 0:0:2]} 44. d7 {[%emt 0:0:16]} Ne6 {[%emt 0:0:0]} 45. Kd3 {[%emt 0:0:1]} Kb4 {[%emt 0:0:2]} 46. Kd2 {[%emt 0:0:11]} a4 {[%emt 0:0:1]} 47. Bd3 {[%emt 0:0:1]} a3 {[%emt 0:0:1]} 48. Kc1 {[%emt 0:0:0]} Kc3 {[%emt 0:0:3]} 49. Bb1 {[%emt 0:0:36]} a2 {[%emt 0:0:3]} 0-1

[Event "FIDE World Rapid-ch Open 2018"]
[White "Vlassov, Nikolai"]
[Black "Al Thebaiti, Ahmed M"]
[Site "St. Petersburg"]
[Round "2.99"]
[Annotator "NA"]
[Result "1-0"]
[Date "2018.12.26"]
[WhiteElo "2401"]
[BlackElo "1976"]
[PlyCount "120"]
[TimeControl "900+10"]

1. g4 {[%emt 0:0:0]} d5 {[%emt 0:0:9]} 2. Bg2 {[%emt 0:0:0]} c6 {[%emt 0:0:0]} 3. h3 {[%emt 0:0:0]} e5 {[%emt 0:0:10]} 4. d4 {[%emt 0:0:0]} exd4 {[%emt 0:1:17]} 5. Qxd4 {[%emt 0:0:1]} Qf6 {[%emt 0:0:31]} 6. Nf3 {[%emt 0:0:0]} Nd7 {[%emt 0:0:9]} 7. 0-0 {[%emt 0:0:4]} Qxd4 {[%emt 0:0:7]} 8. Nxd4 {[%emt 0:0:2]} Bc5 {[%emt 0:1:15]} 9. Be3 {[%emt 0:0:30]} Ne7 {[%emt 0:0:15]
} 10. c4 {[%emt 0:1:3]} 0-0 {[%emt 0:0:53]} 11. cxd5 {[%emt 0:0:0]} Nxd5 {[%emt 0:0:16]} 12. Bxd5 {[%emt 0:0:3]} cxd5 {[%emt 0:0:1]} 13. Nc3 {[%emt 0:0:2]} Nb6 {[%emt 0:0:24]} 14. Rfd1 {[%emt 0:0:32]} h5 {[%emt 0:0:12]
} 15. f3 {[%emt 0:0:32]} hxg4 {[%emt 0:0:1]} 16. hxg4 {[%emt 0:0:1]
} Nc4 {[%emt 0:0:33]} 17. Bf2 {[%emt 0:0:25]} Nxb2 {[%emt 0:0:0]} 18. Rdb1 {[%emt 0:0:2]} Nc4 {[%emt 0:0:3]} 19. Nxd5 {[%emt 0:0:26]} b6 {[%emt 0:0:32]} 20. Rc1 {[%emt 0:0:54]} Ne5 {[%emt 0:0:51]} 21. Rxc5 {[%emt 0:3:23]
} bxc5 {[%emt 0:0:27]} 22. Ne7+ {[%emt 0:0:2]} Kh7 {[%emt 0:0:0]} 23. Kg2 {[%emt 0:0:1]} g6 {[%emt 0:1:0]} 24. Nb5 {[%emt 0:0:19]} Ba6 {[%emt 0:1:37]} 25. Nc7 {[%emt 0:0:32]} Bxe2 {[%emt 0:0:2]} 26. Re1 {[%emt 0:0:48]
} Bxf3+ {[%emt 0:1:3]} 27. Kg3 {[%emt 0:0:2]} Nd3 {[%emt 0:0:0]} 28. Kxf3 {[%emt 0:1:9]} Nxe1+ {[%emt 0:0:8]} 29. Bxe1 {[%emt 0:0:0]} Rae8 {[%emt 0:0:13]} 30. Ncd5 {[%emt 0:0:12]} Rxe7 {[%emt 0:0:16]} 31. Nxe7 {[%emt 0:0:2]} Re8 {[%emt 0:0:2]} 32. Bh4 {[%emt 0:0:1]} Kg7 {[%emt 0:0:41]
} 33. Nd5 {[%emt 0:0:2]} Re6 {[%emt 0:0:22]} 34. Be7 {[%emt 0:0:0]} c4 {[%emt 0:0:39]} 35. Bc5 {[%emt 0:0:13]} f6 {[%emt 0:0:11]} 36. Bxa7 {[%emt 0:0:11]} Re5 {[%emt 0:1:9]} 37. Nxf6 {[%emt 0:0:20]} Ra5 {[%emt 0:0:33]
} 38. Bd4 {[%emt 0:0:4]} Rxa2 {[%emt 0:0:11]} 39. Ke4 {[%emt 0:0:42]
} Kf7 {[%emt 0:0:43]} 40. Kd5 {[%emt 0:0:28]} Rd2 {[%emt 0:0:0]} 41. Ne4 {[%emt 0:0:13]} Rg2 {[%emt 0:0:4]} 42. g5 {[%emt 0:0:24]} Rg4 {[%emt 0:0:4]} 43. Bf6 {[%emt 0:0:42]} Rg1 {[%emt 0:0:33]} 44. Nd6+ {[%emt 0:0:6]
} Kf8 {[%emt 0:0:10]} 45. Nxc4 {[%emt 0:0:29]} Rd1+ {[%emt 0:0:0]} 46. Ke6 {[%emt 0:0:33]} Re1+ {[%emt 0:0:9]} 47. Ne5 {[%emt 0:0:1]} Ke8 {[%emt 0:0:8]} 48. Kd5 {[%emt 0:0:10]} Rd1+ {[%emt 0:0:2]} 49. Ke4 {[%emt 0:0:2]
} Re1+ {[%emt 0:0:5]} 50. Kf4 {[%emt 0:0:2]} Rf1+ {[%emt 0:0:0]} 51. Kg3 {[%emt 0:0:5]} Kf8 {[%emt 0:0:27]} 52. Nxg6+ {[%emt 0:0:9]
} Kf7 {[%emt 0:0:0]} 53. Nf4 {[%emt 0:0:3]} Rg1+ {[%emt 0:0:7]} 54. Kf3 {[%emt 0:0:5]
} Rb1 {[%emt 0:0:6]} 55. Kg4 {[%emt 0:0:17]} Rb5 {[%emt 0:0:0]} 56. Bc3 {[%emt 0:0:22]} Rc5 {[%emt 0:0:13]} 57. Bd4 {[%emt 0:0:5]} Rc4 {[%emt 0:0:12]} 58. Be5 {[%emt 0:0:3]} Rc1 {[%emt 0:0:14]} 59. g6+ {[%emt 0:0:9]
} Kg8 {[%emt 0:0:15]} 60. Nd5 {[%emt 0:0:44]} Rg1+ {[%emt 0:0:0]} 1-0

[Event "FIDE World Rapid-ch Open 2018"]
[White "Al Turky, Fahad A"]
[Black "Drygalov, Andrey"]
[Site "St. Petersburg"]
[Round "2.100"]
[Annotator "ChessBase"]
[Result "0-1"]
[Date "2018.12.26"]
[WhiteElo "1836"]
[BlackElo "2481"]
[PlyCount "42"]
[TimeControl "900+10"]

1. c4 {[%emt 0:3:46]} e5 {[%emt 0:0:0]} 2. Nc3 {[%emt 0:0:1]} Nf6 {[%emt 0:0:0]
} 3. g3 {[%emt 0:0:2]} d5 {[%emt 0:0:0]} 4. cxd5 {[%emt 0:0:0]} Nxd5 {[%emt 0:0:0]} 5. Bg2 {[%emt 0:0:8]} Nb6 {[%emt 0:0:1]} 6. Nf3 {[%emt 0:0:12]} Nc6 {[%emt 0:0:2]} 7. 0-0 {[%emt 0:0:7]} Be7 {[%emt 0:0:0]} 8. a3 {[%emt 0:1:46]} 0-0 {[%emt 0:0:2]} 9. b4 {[%emt 0:0:2]} Be6 {[%emt 0:0:44]
} 10. b5 {[%emt 0:1:21]} Nd4 {[%emt 0:0:11]} 11. Nxe5 {[%emt 0:0:0]} Bb3 {[%emt 0:0:3]} 12. Qe1 {[%emt 0:0:3]} Nc2 {[%emt 0:0:5]} 13. Rb1 {[%emt 0:0:40]} Nxe1 {[%emt 0:0:2]} 14. Rxb3 {[%emt 0:0:1]} Nxg2 15. Kxg2 {[%emt 0:0:9]} Nd5 {[%emt 0:0:16]} 16. e4 {[%emt 0:5:2]} Nxc3 {[%emt 0:0:0]
} 17. dxc3 {[%emt 0:0:17]} f6 {[%emt 0:0:7]} 18. Nf3 {[%emt 0:0:0]} Re8 {[%emt 0:0:6]} 19. Be3 {[%emt 0:0:18]} Bf8 {[%emt 0:0:7]} 20. Re1 {[%emt 0:0:29]} Rxe4 {[%emt 0:0:7]} 21. Nd4 {[%emt 0:0:27]} Rxd4 {[%emt 0:0:1]
} 0-1

[Event "FIDE World Rapid-ch Open 2018"]
[White "Gutenev, Alexander"]
[Black "Alsulaymi, Abdullah M"]
[Site "St. Petersburg"]
[Round "2.101"]
[Annotator "ChessBase"]
[Result "1-0"]
[Date "2018.12.26"]
[WhiteElo "2456"]
[BlackElo "1833"]
[PlyCount "35"]
[TimeControl "900+10"]

1. e4 {[%emt 0:0:0]} e5 {[%emt 0:0:0]} 2. Nf3 Nf6 {[%emt 0:0:0]} 3. d4 {[%emt 0:0:0]
} Nxe4 {[%emt 0:0:27]} 4. Bd3 d5 {[%emt 0:1:4]} 5. dxe5 {[%emt 0:0:4]
} Bf5 {[%emt 0:1:23]} 6. 0-0 {[%emt 0:0:25]} Bc5 {[%emt 0:0:0]} 7. Nc3 {[%emt 0:1:14]} Nxc3 {[%emt 0:0:15]} 8. bxc3 {[%emt 0:0:2]} Bg4 {[%emt 0:0:12]} 9. h3 {[%emt 0:0:10]} Bh5 {[%emt 0:0:7]} 10. Rb1 {[%emt 0:0:0]} Nd7 {[%emt 0:0:48]} 11. Rxb7 {[%emt 0:0:55]} Nb6 {[%emt 0:0:19]} 12. Bb5+ {[%emt 0:0:6]} Kf8 {[%emt 0:0:9]} 13. Bc6 {[%emt 0:0:12]} a5 {[%emt 0:2:45]
} 14. Be3 {[%emt 0:1:7]} Bxe3 {[%emt 0:0:20]} 15. fxe3 {[%emt 0:0:2]
} Rc8 {[%emt 0:0:57]} 16. Qd4 {[%emt 0:0:15]} Qe7 {[%emt 0:0:0]} 17. Bxd5 {[%emt 0:1:4]} Rd8 {[%emt 0:0:31]} 18. e4 {[%emt 0:0:7]} 1-0